fUSD/lending_fUSD_20241223
["ID","MTS","AMOUNT","RATE_DAILY","PERIOD"]
[346396446,1734939055544,-1000.0,0.000199,2]
[346396447,1734939055553,-1000.0,0.000199,2]
[346396448,1734939055562,-1000.0,0.000199,2]
[346396449,1734939055571,-1000.0,0.000199,2]
[346396450,1734939055581,-1000.0,0.000199,2]
[346396451,1734939055590,-1000.0,0.000199,2]
[346396452,1734939055600,-1000.0,0.000199,2]
[346396453,1734939055609,-1000.0,0.000199,2]
[346396454,1734939055619,-1000.0,0.000199,2]
[346396455,1734939055628,-1000.0,0.000199,2]
[346396456,1734939055638,-1000.0,0.000199,2]
[346396457,1734939055647,-1000.0,0.000199,2]
[346396458,1734939055657,-1000.0,0.000199,2]
[346396459,1734939055667,-1000.0,0.000199,2]
[346396460,1734939055676,-1000.0,0.000199,2]
[346396461,1734939055686,-1000.0,0.000199,2]
[346396462,1734939055696,-1000.0,0.000199,2]
[346396463,1734939055706,-1000.0,0.000199,2]
[346396464,1734939055716,-1000.0,0.000199,2]
[346396465,1734939055726,-1000.0,0.000199,2]
[346396466,1734939055736,-1000.0,0.000199,2]
[346396467,1734939055745,-1000.0,0.000199,2]
[346396468,1734939055759,-1000.0,0.000199,2]
[346396469,1734939055768,-1000.0,0.000199,2]
[346396470,1734939055778,-1000.0,0.000199,2]
[346396471,1734939055787,-1000.0,0.000199,2]
[346396472,1734939055798,-1000.0,0.000199,2]
[346396473,1734939055808,-1000.0,0.000199,2]
[346396474,1734939055817,-1000.0,0.000199,2]
[346396475,1734939055828,-1000.0,0.000199,2]
[346396476,1734939055838,-1000.0,0.000199,2]
[346396477,1734939055848,-1000.0,0.000199,2]
[346396478,1734939055858,-1000.0,0.000199,2]
[346396479,1734939055868,-1000.0,0.000199,2]
[346396480,1734939055877,-1000.0,0.000199,2]
[346396481,1734939055887,-1000.0,0.000199,2]
[346396482,1734939055896,-1000.0,0.000199,2]
[346396483,1734939055906,-1000.0,0.000199,2]
[346396484,1734939055916,-1000.0,0.000199,2]
[346396485,1734939055925,-912.9907,0.000199,2]
[346396486,1734939055935,-127729.39950225,0.000199,2]
[346396487,1734939055944,-15456.44079722,0.000199,2]
[346396488,1734939055953,-22320.94339651,0.000199,2]
[346396489,1734939055963,-184.78777226,0.000199,2]
[346396490,1734939055972,-184.78777226,0.000199,2]
[346396491,1734939055982,-184.78777226,0.000199,2]
[346396492,1734939055991,-184.78,0.000199,2]
[346396493,1734939056000,-5800.0,0.000199,2]
[346396494,1734939056010,-333.45122411,0.000199,2]
[346396495,1734939056019,-2338.97164709,0.000199,2]
[346396496,1734939056029,-159.14148814,0.000199,2]
[346396497,1734939056038,-151.0,0.000199,2]
[346396498,1734939056047,-934.27989966,0.000199,2]
[346396499,1734939056061,-1500.0,0.00019901,2]
[346396500,1734939056071,-150.0,0.00019901,2]
[346396501,1734939056081,-150.0,0.00019904,2]
[346396502,1734939056090,-150.0,0.00019905,2]
[346396503,1734939056103,-150.0,0.00019911,2]
[346396504,1734939056112,-150.0,0.00019914,2]
[346396505,1734939056122,-150.0,0.00019917,2]
[346396506,1734939056132,-150.0,0.00019921,2]
[346396507,1734939056141,-153.0,0.00019922,2]
[346396508,1734939056150,-153.0,0.00019922,2]
[346396509,1734939056160,-153.0,0.00019922,2]
[346396510,1734939056169,-153.0,0.00019922,2]
[346396511,1734939056179,-153.0,0.00019922,2]
[346396512,1734939056188,-153.0,0.00019923,2]
[346396513,1734939056198,-153.0,0.00019923,2]
[346396514,1734939056208,-153.0,0.00019923,2]
[346396515,1734939056218,-153.0,0.00019923,2]
[346396516,1734939056227,-153.0,0.00019923,2]
[346396517,1734939056237,-153.0,0.00019923,2]
[346396518,1734939056246,-153.0,0.00019923,2]
[346396519,1734939056256,-153.0,0.00019923,2]
[346396520,1734939056265,-153.0,0.00019923,2]
[346396521,1734939056274,-153.0,0.00019923,2]
[346396522,1734939056284,-153.0,0.00019923,2]
[346396523,1734939056293,-150.0,0.00019924,2]
[346396524,1734939056303,-150.0,0.00019926,2]
[346396525,1734939056314,-150.0,0.00019926,2]
[346396526,1734939056324,-150.0,0.00019928,2]
[346396527,1734939056334,-150.0,0.00019932,2]
[346396528,1734939056343,-1500.0,0.00019933,2]
[346396529,1734939056353,-150.0,0.00019933,2]
[346396530,1734939056363,-150.0,0.00019935,2]
[346396531,1734939056372,-150.0,0.00019937,2]
[346396532,1734939056381,-150.0,0.00019937,2]
[346396533,1734939056391,-150.0,0.00019939,2]
[346396534,1734939056400,-150.0,0.00019941,2]
[346396535,1734939056409,-150.0,0.00019942,2]
[346396536,1734939056419,-150.0,0.00019944,2]
[346396537,1734939056428,-150.0,0.00019946,2]
[346396538,1734939056437,-150.0,0.00019946,2]
[346396539,1734939056447,-150.0,0.0001995,2]
[346396540,1734939056456,-150.0,0.00019953,2]
[346396541,1734939056466,-150.0,0.00019957,2]
[346396542,1734939056475,-150.0,0.0001996,2]
[346396543,1734939056484,-159689.17984,0.0001996,2]
[346396544,1734939056494,-150.0,0.0001996,2]
[346396545,1734939056504,-150.0,0.00019962,2]
[346396546,1734939056513,-150.0,0.00019966,2]
[346396547,1734939056523,-150.0,0.00019967,2]
[346396548,1734939056532,-1000.0,0.0001997,2]
[346396549,1734939056541,-1000.0,0.0001997,2]
[346396550,1734939056555,-1000.0,0.0001997,2]
[346396551,1734939056564,-1000.0,0.0001997,2]
[346396552,1734939056574,-1000.0,0.0001997,2]
[346396553,1734939056584,-1000.0,0.0001997,2]
[346396554,1734939056594,-1000.0,0.0001997,2]
[346396555,1734939056603,-1000.0,0.0001997,2]
[346396556,1734939056613,-1000.0,0.0001997,2]
[346396557,1734939056623,-1915.08636567,0.0001997,2]
[346396558,1734939056632,-500.0,0.0001997,2]
[346396559,1734939056642,-500.0,0.0001997,2]
[346396560,1734939056651,-500.0,0.0001997,2]
[346396561,1734939056661,-500.0,0.0001997,2]
[346396562,1734939056670,-701.87219522,0.0001997,2]
[346396563,1734939056680,-514.0,0.0001997,2]
[346396564,1734939056690,-500.0,0.00019973,2]
[346396565,1734939056700,-250.0,0.00019974,2]
[346396566,1734939056709,-154.0,0.00019974,2]
[346396567,1734939056719,-154.0,0.00019974,2]
[346396568,1734939056728,-154.0,0.00019974,2]
[346396569,1734939056738,-154.0,0.00019974,2]
[346396570,1734939056748,-154.0,0.00019974,2]
[346396571,1734939056761,-154.0,0.00019974,2]
[346396572,1734939056771,-154.0,0.00019974,2]
[346396573,1734939056781,-154.0,0.00019974,2]
[346396574,1734939056791,-154.0,0.00019974,2]
[346396575,1734939056802,-154.0,0.00019974,2]
[346396576,1734939056812,-154.0,0.00019974,2]
[346396577,1734939056821,-154.0,0.00019974,2]
[346396578,1734939056833,-155.9,0.00019974,2]
[346396579,1734939056843,-150.0,0.00019979,2]
[346396580,1734939056853,-150.0,0.00019979,2]
[346396581,1734939056863,-3512779.00181995,0.0001998,2]
[346396582,1734939056872,-151.0,0.0001998,2]
[346396583,1734939056882,-151.0,0.0001998,2]
[346396584,1734939056891,-5719.000515,0.0001998,2]
[346396585,1734939056901,-5719.000515,0.0001998,2]
[346396586,1734939056910,-151.0,0.0001998,2]
[346396587,1734939056920,-151.0,0.0001998,2]
[346396588,1734939056930,-151.34,0.00019981,2]
[346396589,1734939056940,-150.0,0.00019984,2]
[346396590,1734939056950,-13026.49576871,0.00019989,5]
[346396591,1734939056959,-500.0,0.00019989,2]
[346396592,1734939056969,-500.0,0.00019989,2]
[346396593,1734939056979,-500.0,0.00019989,2]
[346396594,1734939056988,-500.0,0.00019989,2]
[346396595,1734939056997,-500.0,0.00019989,2]
[346396596,1734939057007,-500.0,0.00019989,2]
[346396597,1734939057018,-619352.0,0.0001999,2]
[346396598,1734939057028,-4847.0,0.0001999,7]
[346396599,1734939057037,-10000.0,0.0001999,7]
[346396600,1734939057047,-5200.0,0.0001999,29]
[346396601,1734939057057,-192.33094,0.0001999,2]
[346396602,1734939057067,-192.33094,0.0001999,2]
[346396603,1734939057077,-151.0,0.0001999,2]
[346396604,1734939057087,-151.0,0.0001999,2]
[346396605,1734939057097,-151.0,0.0001999,2]
[346396606,1734939057107,-151.0,0.0001999,2]
[346396607,1734939057263,-151.0,0.0001999,2]
[346396608,1734939057273,-151.0,0.0001999,2]
[346396609,1734939057283,-151.0,0.0001999,2]
[346396610,1734939057293,-151.0,0.0001999,2]
[346396611,1734939057302,-486.092945,0.0001999,2]
[346396612,1734939057312,-151.0,0.0001999,2]
[346396613,1734939057321,-151.0,0.0001999,2]
[346396614,1734939057331,-486.092945,0.0001999,2]
[346396615,1734939057341,-170.93546,0.0001999,2]
[346396616,1734939057351,-170.93546,0.0001999,2]
[346396617,1734939057360,-1132.855628,0.0001999,2]
[346396618,1734939057370,-1132.855628,0.0001999,2]
[346396619,1734939057379,-427.014721,0.0001999,2]
[346396620,1734939057389,-427.014721,0.0001999,2]
[346396621,1734939057398,-153.082133,0.0001999,2]
[346396622,1734939057408,-232.121355,0.0001999,2]
[346396623,1734939057417,-232.121355,0.0001999,2]
[346396624,1734939057427,-2004.424646,0.0001999,2]
[346396625,1734939057436,-151.0,0.0001999,2]
[346396626,1734939057445,-2004.424646,0.0001999,2]
[346396627,1734939057455,-151.0,0.0001999,2]
[346396628,1734939057464,-151.0,0.0001999,2]
[346396629,1734939057473,-151.0,0.0001999,2]
[346396630,1734939057482,-151.0,0.0001999,2]
[346396631,1734939057492,-151.0,0.0001999,2]
[346396632,1734939057501,-371.858557,0.0001999,2]
[346396633,1734939057510,-371.858557,0.0001999,2]
[346396634,1734939057520,-154.507231,0.0001999,2]
[346396635,1734939057530,-156.182821,0.0001999,2]
[346396636,1734939057540,-151.0,0.0001999,2]
[346396637,1734939057550,-287.965352,0.0001999,2]
[346396638,1734939057560,-151.0,0.0001999,2]
[346396639,1734939057570,-151.0,0.0001999,2]
[346396640,1734939057579,-151.0,0.0001999,2]
[346396641,1734939057589,-151.0,0.0001999,2]
[346396642,1734939057598,-151.0,0.0001999,2]
[346396643,1734939057608,-151.0,0.0001999,2]
[346396644,1734939057618,-151.0,0.0001999,2]
[346396645,1734939057627,-151.0,0.0001999,2]
[346396646,1734939057637,-151.0,0.0001999,2]
[346396647,1734939057646,-151.0,0.0001999,2]
[346396648,1734939057656,-164.343216,0.0001999,2]
[346396649,1734939057666,-164.343216,0.0001999,2]
[346396650,1734939057675,-151.0,0.0001999,2]
[346396651,1734939057684,-151.0,0.0001999,2]
[346396652,1734939057694,-296.788892,0.0001999,2]
[346396653,1734939057703,-151.0,0.0001999,2]
[346396654,1734939057712,-151.0,0.0001999,2]
[346396655,1734939057722,-5719.000515,0.0001999,2]
[346396656,1734939057731,-5719.000515,0.0001999,2]
[346396657,1734939057740,-259.0,0.0001999,2]
[346396658,1734939057754,-191.969476,0.0001999,2]
[346396659,1734939057763,-151.0,0.0001999,2]
[346396660,1734939057773,-1500.0,0.00019992,2]
[346396661,1734939057783,-150.0,0.00019992,2]
[346396662,1734939057794,-150.0,0.00019994,2]
[346396663,1734939057806,-150.0,0.00019995,2]
[346396664,1734939057815,-203.598505,0.00019996,2]
[346396665,1734939057826,-203.598505,0.00019996,2]
[346396666,1734939057836,-203.598505,0.00019996,2]
[346396667,1734939057846,-203.598505,0.00019996,2]
[346396668,1734939057856,-203.598505,0.00019996,2]
[346396669,1734939057865,-203.598505,0.00019996,2]
[346396670,1734939057876,-2297.1723981,0.00019996,2]
[346396671,1734939057886,-2026.5812427,0.00019996,2]
[346396672,1734939057895,-1755.9900874,0.00019996,2]
[346396673,1734939057905,-1485.398932,0.00019996,2]
[346396674,1734939057915,-1214.8077767,0.00019996,2]
[346396675,1734939057924,-944.2166213,0.00019996,2]
[346396676,1734939057934,-1589.2174225,0.00019996,2]
[346396677,1734939057944,-1403.7974665,0.00019996,2]
[346396678,1734939057953,-1218.3775105,0.00019996,2]
[346396679,1734939057963,-1032.9575546,0.00019996,2]
[346396680,1734939057973,-847.5375986,0.00019996,2]
[346396681,1734939057982,-662.1176426,0.00019996,2]
[346396682,1734939057992,-718.61718588,0.00019996,2]
[346396683,1734939058002,-300.0,0.00019999,2]
[346396684,1734939058011,-378.86774927,0.00019999,2]
[346396685,1734939058020,-300.0,0.00019999,2]
[346396686,1734939058030,-666.0,0.00019999,2]
[346396687,1734939058039,-1002.1948,0.00019999,2]
[346396688,1734939058048,-78201.8,0.00019999,2]
[346396689,1734939058059,-500.0,0.00019999,2]
[346396690,1734939058068,-500.0,0.00019999,2]
[346396691,1734939058078,-355.6,0.00019999,2]
[346396692,1734939058087,-500.0,0.00019999,2]
[346396693,1734939058096,-266.3,0.00019999,2]
[346396694,1734939058106,-3151347.69290271,0.0002,2]
[346396695,1734939058115,-3957.50103212,0.0002,2]
[346396696,1734939058125,-243029.48965727,0.0002,2]
[346396697,1734939058134,-2771.80477259,0.0002,7]
[346396698,1734939058143,-470.67910585,0.0002,10]
[346396699,1734939058153,-40954.59294647,0.0002,2]
[346396700,1734939058162,-202.6,0.0002,2]
[346396701,1734939058171,-202.6,0.0002,2]
[346396702,1734939058181,-202.6,0.0002,2]
[346396703,1734939058191,-2110.0,0.0002,2]
[346396704,1734939058201,-2080.20218116,0.0002,2]
[346396705,1734939058210,-500.0,0.0002,2]
[346396706,1734939058220,-500.0,0.0002,2]
[346396707,1734939058229,-500.0,0.0002,2]
[346396708,1734939058239,-500.0,0.0002,2]
[346396709,1734939058249,-500.0,0.0002,2]
[346396710,1734939058259,-384.0,0.0002,2]
[346396711,1734939058268,-500.0,0.0002,2]
[346396712,1734939058278,-500.0,0.0002,2]
[346396713,1734939058287,-500.0,0.0002,2]
[346396714,1734939058297,-500.0,0.0002,2]
[346396715,1734939058308,-500.0,0.0002,2]
[346396716,1734939058318,-500.0,0.0002,2]
[346396717,1734939058328,-500.0,0.0002,2]
[346396718,1734939058338,-503.0,0.0002,2]
[346396719,1734939058347,-6207616.40092548,0.0002,2]
[346396720,1734939058674,-1501.26519847,0.0002,2]
[346396721,1734939058689,-171179.52567297,0.0002,2]
[346396722,1734939059241,-155.02060125,0.000191,2]
[346396723,1734939059250,-500.0,0.00019178,2]
[346396724,1734939059259,-500.0,0.00019178,2]
[346396725,1734939059269,-500.0,0.00019178,2]
[346396726,1734939059279,-421.47861,0.00019178,2]
[346396727,1734939059288,-2207.74586985,0.000194,2]
[346396728,1734939059299,-5000.0,0.000194,2]
[346396729,1734939059421,-253.90758358,0.000194,2]
[346396730,1734939060205,-159.77491562,0.00018973,2]
[346396731,1734939060214,-500.0,0.00018973,2]
[346396732,1734939060224,-500.0,0.00019178,2]
[346396733,1734939060233,-500.0,0.00019178,2]
[346396734,1734939060242,-500.0,0.00019178,2]
[346396735,1734939060251,-500.0,0.00019178,2]
[346396736,1734939060260,-500.0,0.00019178,2]
[346396737,1734939060269,-224.14689579,0.00019178,2]
[346396738,1734939060278,-500.0,0.00019178,2]
[346396739,1734939060287,-64.68375959,0.000194,2]
[346396740,1734939060303,-3402.29497304,0.000194,2]
[346396741,1734939060323,-1667.76035503,0.000194,2]
[346396742,1734939060332,-1435.33136723,0.00019445,2]
[346396743,1734939060341,-500.0,0.00019451,2]
[346396744,1734939060351,-500.0,0.00019451,2]
[346396745,1734939060360,-500.0,0.00019452,2]
[346396746,1734939060369,-500.0,0.00019452,2]
[346396747,1734939060378,-500.0,0.00019452,2]
[346396748,1734939060388,-421.47861,0.00019452,2]
[346396749,1734939060397,-500.0,0.00019452,2]
[346396750,1734939060406,-500.0,0.00019452,2]
[346396751,1734939060415,-500.0,0.00019452,2]
[346396752,1734939060424,-471.006464,0.00019452,2]
[346396753,1734939060433,-500.0,0.00019452,2]
[346396754,1734939060442,-1435.33136723,0.00019485,2]
[346396755,1734939060452,-1435.33136723,0.00019499,2]
[346396756,1734939060461,-1146.70422715,0.00019521,2]
[346396757,1734939060470,-500.0,0.00019599,2]
[346396758,1734939060480,-500.0,0.00019599,2]
[346396759,1734939060490,-260.50038924,0.00019599,2]
[346396760,1734939060500,-500.0,0.00019725,2]
[346396761,1734939060509,-500.0,0.00019725,2]
[346396762,1734939060518,-500.0,0.00019725,2]
[346396763,1734939060527,-500.0,0.00019725,2]
[346396764,1734939060536,-500.0,0.00019725,2]
[346396765,1734939060546,-500.0,0.00019725,2]
[346396766,1734939060556,-500.0,0.00019725,2]
[346396767,1734939060566,-359.07,0.00019725,2]
[346396768,1734939060575,-500.0,0.00019726,2]
[346396769,1734939060584,-500.0,0.00019726,2]
[346396770,1734939060594,-500.0,0.00019726,2]
[346396771,1734939060604,-421.47861,0.00019726,2]
[346396772,1734939060613,-500.0,0.00019726,2]
[346396773,1734939060622,-551.8958751,0.00019726,2]
[346396774,1734939060631,-500.0,0.00019726,2]
[346396775,1734939060640,-372.42784086,0.00019726,2]
[346396776,1734939060649,-3887.0,0.00019743,2]
[346396777,1734939060659,-151.0,0.000198,2]
[346396778,1734939060668,-151.0,0.000198,2]
[346396779,1734939060677,-151.0,0.000199,2]
[346396780,1734939060686,-12596.39254109,0.000199,2]
[346396781,1734939060696,-153.0,0.00019922,2]
[346396782,1734939060705,-153.0,0.00019922,2]
[346396783,1734939060714,-272.281798,0.0001998,2]
[346396784,1734939060723,-50022.2435262,0.0002,2]
[346396785,1734939061095,-853.2,0.00016671,2]
[346396786,1734939061105,-853.2,0.00018935,2]
[346396787,1734939061114,-155.02060125,0.000191,2]
[346396788,1734939061123,-500.0,0.00019178,2]
[346396789,1734939061132,-507.68057935,0.00019178,2]
[346396790,1734939061141,-500.0,0.00019178,2]
[346396791,1734939061151,-500.0,0.00019178,2]
[346396792,1734939061160,-150.622576,0.00019178,2]
[346396793,1734939061169,-1000.0,0.00019178,2]
[346396794,1734939061178,-500.0,0.00019452,2]
[346396795,1734939061187,-379.02250514,0.00019452,2]
[346396796,1734939061197,-505.24242984,0.00019452,2]
[346396797,1734939061206,-1435.33136723,0.00019473,2]
[346396798,1734939061215,-1435.33136723,0.00019489,2]
[346396799,1734939061224,-1435.33136723,0.00019492,2]
[346396800,1734939061233,-500.0,0.00019726,2]
[346396801,1734939061242,-1101.0,0.00019743,2]
[346396802,1734939061251,-77159.6165617,0.0002,2]
[346396804,1734939564249,-8177.36087738,0.00012935,2]
[346396805,1734939564274,-221.05709915,0.00012936,2]
[346396806,1734939564298,-300.0,0.00012998,2]
[346396807,1734939564322,-701.52,0.00012999,2]
[346396808,1734939564347,-3074.33097542,0.00012999,2]
[346396809,1734939588384,-701.52,0.00013136,2]
[346396810,1734939588411,-701.52,0.00013273,2]
[346396811,1734939588437,-701.52,0.0001341,2]
[346396812,1734939588462,-701.52,0.00013547,2]
[346396813,1734939588487,-701.52,0.00013684,2]
[346396814,1734939588511,-701.52,0.00013821,2]
[346396815,1734939588540,-701.52,0.00013958,2]
[346396816,1734939588565,-701.52,0.00014095,2]
[346396817,1734939588589,-701.52,0.00014232,2]
[346396818,1734939588615,-701.52,0.00014369,2]
[346396819,1734939588640,-701.52,0.00014506,2]
[346396820,1734939588665,-701.52,0.00014643,2]
[346396821,1734939588692,-701.52,0.0001478,2]
[346396822,1734939588718,-701.52,0.00014917,2]
[346396823,1734939588745,-701.52,0.00015054,2]
[346396824,1734939588771,-701.52,0.00015191,2]
[346396825,1734939608284,-23900.0,0.0001524,2]
[346396826,1734939608309,-163.05,0.00015248,2]
[346396827,1734939753153,-5562.0,0.000153,5]
[346396828,1734939753181,-701.52,0.00015328,2]
[346396829,1734939753208,-701.52,0.00015465,2]
[346396830,1734939753234,-250.0,0.00015474,2]
[346396831,1734939753259,-255.1,0.00015574,2]
[346396832,1734939767319,-701.52,0.00015602,2]
[346396833,1734939767345,-1000.0,0.0001563,2]
[346396834,1734939767370,-701.52,0.00015739,2]
[346396835,1734939767396,-300.0,0.00015875,2]
[346396836,1734939767420,-701.52,0.00015876,2]
[346396839,1734939813099,-2000.0,0.00019178,15]
[346396840,1734940012136,-883.11,0.0001603,2]
[346396841,1734940012158,-603.46924806,0.00017583,2]
[346396842,1734940029843,450.0,0.00013,2]
[346396843,1734940035205,297.57,0.00010137,2]
[346396860,1734940232389,-500.0,0.00015,2]
[346396861,1734940232402,-297.57,0.00016813,2]
[346396862,1734940232411,-550.0,0.00017,2]
[346396863,1734940232421,-396.53075194,0.00017583,2]
[346396864,1734940232431,-342.5,0.00017845,2]
[346396865,1734940232440,-600.32741823,0.00018,2]
[346396866,1734940232449,-150.0,0.00018,2]
[346396867,1734940232459,-150.0,0.00018,2]
[346396868,1734940232469,-152.59475943,0.00018,2]
[346396869,1734940232479,-151.67121748,0.00018,2]
[346396870,1734940232489,-150.0,0.00018,2]
[346396871,1734940232499,-150.8166324,0.00018,2]
[346396872,1734940232510,-151.26476083,0.00018,2]
[346396873,1734940232520,-500.0,0.00018019,2]
[346396874,1734940232529,-150.0,0.000181,2]
[346396875,1734940232850,-150.0,0.000182,2]
[346396876,1734940232878,-150.0,0.00018222,2]
[346396877,1734940232890,-1226.96,0.00018224,2]
[346396878,1734940232899,-883.11,0.00018294,2]
[346396879,1734940232908,-150.0,0.000183,2]
[346396880,1734940232917,-150.0,0.00018333,2]
[346396881,1734940232926,-150.0,0.000184,2]
[346396882,1734940232935,-150.0,0.00018444,2]
[346396883,1734940232945,-150.0,0.000185,2]
[346396884,1734940232954,-150.0,0.000186,2]
[346396885,1734940232963,-59.76301723,0.00018608,2]
[346396886,1734940232975,-1691.761356,0.00018608,2]
[346396887,1734940232998,-320.44786209,0.00018608,2]
[346396888,1734940233010,-856.04257068,0.00018608,2]
[346396889,1734940233029,-1911.76786501,0.00018608,2]
[346396890,1734940233049,-289.51804252,0.00018608,2]
[346396891,1734940233061,-708.7217319,0.00018608,2]
[346396892,1734940233073,-711.47500005,0.00018608,2]
[346396893,1734940233084,-1198.4,0.00018608,2]
[346396894,1734940233096,-929.64434,0.00018608,2]
[346396895,1734940233119,-599.45821452,0.00018608,2]
[346396896,1734940233129,-150.0,0.00018667,2]
[346396897,1734940233139,-150.0,0.00018667,2]
[346396898,1734940233149,-150.0,0.000187,2]
[346396899,1734940233159,-159.91662376,0.0001873,2]
[346396900,1734940233169,-171.96652561,0.00018795,2]
[346396901,1734940233179,-91.86799411,0.000188,2]
[346396902,1734940233190,-58.13200589,0.000188,2]
[346396903,1734940233200,-150.0,0.00018822,2]
[346396904,1734940233210,-852.42,0.0001886,2]
[346396905,1734940233220,-201.37,0.0001886,2]
[346396906,1734940233230,-202.9,0.0001886,2]
[346396907,1734940233240,-150.0,0.00018889,2]
[346396908,1734940233250,-150.0,0.000189,2]
[346396909,1734940233260,-213.598,0.00019,2]
[346396910,1734940233270,-150.0,0.00019,2]
[346396911,1734940233279,-150.0,0.00019,2]
[346396912,1734940233288,-600.0,0.00019,2]
[346396913,1734940233298,-310.8989009,0.00019011,2]
[346396914,1734940233307,-171.96652561,0.00019014,2]
[346396915,1734940233316,-1669.62,0.00019041,2]
[346396916,1734940233325,-310.8989009,0.00019045,2]
[346396917,1734940233337,-3239.47823586,0.00019078,2]
[346396918,1734940238297,-641.02698414,0.00019078,2]
[346396919,1734940238309,-1072.491,0.00019078,2]
[346396920,1734940238321,-2445.34581101,0.00019078,2]
[346396921,1734940238331,-8509.41724516,0.00019078,2]
[346396922,1734940238343,-162.92212336,0.00019078,2]
[346396923,1734940238352,-310.8989009,0.00019078,2]
[346396924,1734940238362,-203.4,0.00019078,2]
[346396925,1734940238372,-500.0,0.00019078,2]
[346396926,1734940238381,-387.2197,0.00019078,2]
[346396927,1734940238391,-337.2236,0.00019078,2]
[346396928,1734940238400,-265.0745,0.00019078,2]
[346396929,1734940238410,-1047.8245432,0.00019078,2]
[346396930,1734940238435,-2810.7456568,0.00019078,2]
[346396931,1734940238444,-905.3117,0.00019078,2]
[346396932,1734940238453,-150.0,0.000191,2]
[346396933,1734940238463,-1121.8856032,0.000191,2]
[346396934,1734940238486,-1477.05,0.000191,2]
[346396935,1734940238498,-4167.97685387,0.000191,2]
[346396936,1734940238508,-19777.8,0.000191,2]
[346396937,1734940238550,-2198.95625589,0.000191,2]
[346396938,1734940238647,-682386.22192673,0.000191,2]
[346396939,1734940238657,-150.0,0.00019111,2]
[346396940,1734940238666,-309.24733089,0.00019145,2]
[346396941,1734940238675,-1032.3296,0.00019151,2]
[346396942,1734940238684,-7398.342031,0.00019169,2]
[346396943,1734940238693,-8509.41724508,0.00019169,2]
[346396944,1734940238702,-509.36867983,0.00019173,2]
[346396945,1734940238711,-500.07903312,0.00019173,2]
[346396946,1734940238720,-235.21062701,0.00019173,2]
[346396947,1734940238729,-500.0,0.00019173,2]
[346396948,1734940238738,-503.81265985,0.00019178,2]
[346396949,1734940238747,-500.0,0.00019178,2]
[346396950,1734940238755,-500.0,0.00019178,2]
[346396951,1734940238766,-500.0,0.00019178,2]
[346396952,1734940238775,-500.0,0.00019178,2]
[346396953,1734940238784,-500.0,0.00019178,2]
[346396954,1734940238794,-500.0,0.00019178,2]
[346396955,1734940238803,-500.0,0.00019178,2]
[346396956,1734940238812,-500.0,0.00019178,2]
[346396957,1734940238821,-500.0,0.00019178,2]
[346396958,1734940238830,-270.8853266,0.00019178,2]
[346396959,1734940238839,-500.0,0.00019178,2]
[346396960,1734940238848,-500.0,0.00019178,2]
[346396961,1734940238857,-500.0,0.00019178,2]
[346396962,1734940238866,-500.78,0.00019178,2]
[346396963,1734940238875,-500.0,0.00019178,2]
[346396964,1734940238884,-500.0,0.00019178,2]